[Event "Copenhagen Challenge GM 2020"]
[Site "Ballerup"]
[Date "2020.07.23"]
[Round "3.4"]
[White "Rostgaard, Tobias Valentin"]
[Black "Haldorsen, Benjamin"]
[Result "0-1"]
[ECO "B06"]
[WhiteElo "2372"]
[BlackElo "2458"]
[Annotator "RC"]
[PlyCount "68"]
[EventDate "2020.07.22"]
[EventType "tourn"]
[EventCountry "DEN"]
[SourceTitle "playchess.com"]
[Source "ChessBase"]
[SourceQuality "1"]
[TimeControl "40/5400:0"]

1. e4 {[%emt 0:13:48]} g6 {[%emt 0:00:00]} 2. d4 {[%emt 0:00:00]} Bg7 {[%emt 0:00:00]} 3. Nc3 {[%emt 0:00:00]} d6 {[%emt 0:00:00]} 4. Nf3 {[%emt 0:01:12]} a6 {[%emt 0:00:00]} 5. a4 {[%emt 0:00:00]} Nf6 {[%emt 0:00:00]} 6. h3 {[%emt 0:00:10]} O-O {[%emt 0:00:14]} 7. Be3 {[%emt 0:00:00]} Nc6 {[%emt 0:01:59]} 8. Be2 {[%emt 0:00:04]} e5 {[%emt 0:00:33]} 9. d5 {[%emt 0:02:32]} Ne7 {[%emt 0:00:00]} 10. Qd2 {[%emt 0:00:38]} Bd7 {[%emt 0:00:15]} 11. Nh2 {[%emt 0:04:23]} b5 {[%emt 0:08:25]} 12. Ng4 {[%emt 0:05:47]} b4 {[%emt 0:01:56]} 13. Nxf6+ {[%emt 0:00:00]} Bxf6 {[%emt 0:00:00]} 14. Nd1 {[%emt 0:00:36]} a5 {[%emt 0:00:25]} 15. g4 {[%emt 0:03:16]} c6 {[%emt 0:11:45]} 16. Bh6 {[%emt 0:04:51]} Re8 {[%emt 0:01:01]} 17. Ne3 {[%emt 0:01:07]} cxd5 {[%emt 0:00:58]} 18. exd5 {[%emt 0:00:05]} Qc7 {[%emt 0:10:42]} 19. h4 {[%emt 0:03:51]} Nc8 {[%emt 0:03:49]} 20. h5 {[%emt 0:08:30]} Nb6 {[%emt 0:01:04]} 21. hxg6 {[%emt 0:00:00]} fxg6 {[%emt 0:00:34]} 22. Kf1 {[%emt 0:19:46]} e4 {[%emt 0:08:56]} 23. Rb1 {[%emt 0:06:14]} Nxa4 {[%emt 0:11:00]} 24. Bf4 {[%emt 0:03:25]} Nxb2 {[%emt 0:06:22]} 25. Kg2 {[%emt 0:01:18]} a4 {[%emt 0:11:17]} 26. g5 {[%emt 0:03:40]} Bc3 {[%emt 0:00:17]} 27. Qc1 {[%emt 0:00:00]} a3 {[%emt 0:00:00]} 28. Qg1 {[%emt 0:00:00]} Be5 {[%emt 0:04:47]} 29. Qh2 {[%emt 0:01:54]} Bc8 {[%emt 0:00:00]} 30. Bg4 {[%emt 0:01:01]} Nc4 {[%emt 0:00:06]} 31. Nxc4 {[%emt 0:00:13]} Bxg4 {[%emt 0:00:00]} 32. Bxe5 {[%emt 0:00:28]} Bf3+ {[%emt 0:00:26]} 33. Kg3 {[%emt 0:00:12]} dxe5 {[%emt 0:00:10]} 34. d6 {[%emt 0:00:22]} Qf7 {[%emt 0:00:00]} 0-1

[Event "Copenhagen Challenge GM 2020"]
[Site "Ballerup"]
[Date "2020.07.24"]
[Round "5.2"]
[White "Haubro, Martin"]
[Black "Hector, Jonny"]
[Result "0-1"]
[ECO "C74"]
[WhiteElo "2437"]
[BlackElo "2476"]
[Annotator "ChessBase"]
[PlyCount "26"]
[EventDate "2020.07.22"]
[EventType "tourn"]
[EventCountry "DEN"]
[SourceTitle "playchess.com"]
[Source "ChessBase"]
[SourceQuality "1"]
[TimeControl "40/5400:0"]

1. e4 {[%emt 0:00:00]} e5 {[%emt 0:00:00]} 2. Nf3 {[%emt 0:00:00]} Nc6 {[%emt 0:00:00]} 3. Bb5 {[%emt 0:00:00]} a6 {[%emt 0:00:00]} 4. Ba4 {[%emt 0:00:00]} d6 {[%emt 0:00:00]} 5. c3 {[%emt 0:00:00]} f5 {[%emt 0:00:00]} 6. d4 {[%emt 0:00:00]} fxe4 {[%emt 0:02:05]} 7. Nxe5 {[%emt 0:01:41]} dxe5 {[%emt 0:04:02]} 8. Qh5+ {[%emt 0:01:50]} Ke7 {[%emt 0:05:54]} 9. Bxc6 {[%emt 0:00:00]} bxc6 {[%emt 0:04:21]} 10. Bg5+ {[%emt 0:00:00]} Nf6 {[%emt 0:00:00]} 11. dxe5 {[%emt 0:00:00]} Qd5 {[%emt 0:01:38]} 12. f4 {[%emt 0:25:51]} exf3 {[%emt 0:06:42]} 13. O-O {[%emt 0:00:00]} Ke6 {[%emt 0:03:59]} 0-1

[Event "Copenhagen Challenge GM 2020"]
[Site "Ballerup"]
[Date "2020.07.24"]
[Round "5.4"]
[White "Jacobsen, Mikkel Manosri"]
[Black "Haldorsen, Benjamin"]
[Result "0-1"]
[ECO "A40"]
[WhiteElo "2316"]
[BlackElo "2458"]
[Annotator "RC"]
[PlyCount "92"]
[EventDate "2020.07.22"]
[EventType "tourn"]
[EventCountry "DEN"]
[SourceTitle "playchess.com"]
[Source "ChessBase"]
[SourceQuality "1"]
[TimeControl "40/5400:0"]

1. d4 {[%emt 0:00:00]} g6 {[%emt 0:00:00]} 2. c4 {[%emt 0:00:00]} Bg7 {[%emt 0:00:00]} 3. Nf3 {[%emt 0:00:00]} d6 {[%emt 0:00:00]} 4. e3 {[%emt 0:00:58]} Nf6 {[%emt 0:05:04]} 5. Be2 {[%emt 0:00:14]} O-O {[%emt 0:00:00]} 6. O-O {[%emt 0:00:00]} c5 {[%emt 0:01:18]} 7. b3 {[%emt 0:00:52]} Nc6 {[%emt 0:02:39]} 8. Bb2 {[%emt 0:00:00]} cxd4 {[%emt 0:06:56]} 9. Nxd4 {[%emt 0:03:53]} Bd7 {[%emt 0:00:55]} 10. Nc3 {[%emt 0:00:23]} Rc8 {[%emt 0:02:14]} 11. Bf3 {[%emt 0:02:17]} a6 {[%emt 0:05:14]} 12. Qd2 {[%emt 0:03:08]} Qb6 {[%emt 0:06:08]} 13. Na4 {[%emt 0:03:53]} Qa7 {[%emt 0:01:51]} 14. Nxc6 {[%emt 0:02:39]} Bxc6 {[%emt 0:00:23]} 15. Bd4 {[%emt 0:00:24]} Qb8 {[%emt 0:00:00]} 16. Nb6 {[%emt 0:02:35]} Rcd8 {[%emt 0:02:32]} 17. Nd5 {[%emt 0:03:00]} Bxd5 {[%emt 0:03:39]} 18. cxd5 {[%emt 0:00:00]} Nd7 {[%emt 0:03:34]} 19. Bxg7 {[%emt 0:01:34]} Kxg7 {[%emt 0:00:00]} 20. Qd4+ {[%emt 0:00:00]} Kg8 {[%emt 0:00:56]} 21. h4 {[%emt 0:02:00]} Rc8 {[%emt 0:02:54]} 22. Bg4 {[%emt 0:03:42]} f5 {[%emt 0:01:02]} 23. Be2 {[%emt 0:00:00]} Qc7 {[%emt 0:00:00]} 24. g3 {[%emt 0:05:46]} Qc3 {[%emt 0:04:41]} 25. Rfd1 {[%emt 0:01:22]} Qxd4 {[%emt 0:00:53]} 26. Rxd4 {[%emt 0:00:00]} Rc2 {[%emt 0:00:23]} 27. Kf1 {[%emt 0:00:45]} Rfc8 {[%emt 0:02:24]} 28. Ke1 {[%emt 0:05:11]} Nf6 {[%emt 0:00:55]} 29. Bf3 {[%emt 0:01:28]} Rb2 {[%emt 0:02:03]} 30. Rd2 {[%emt 0:00:00]} Rcc2 {[%emt 0:00:00]} 31. Rxc2 {[%emt 0:00:00]} Rxc2 {[%emt 0:00:00]} 32. a3 {[%emt 0:00:00]} Kf7 {[%emt 0:02:55]} 33. Rd1 {[%emt 0:02:24]} Ra2 {[%emt 0:02:48]} 34. a4 {[%emt 0:05:02]} Rb2 {[%emt 0:00:00]} 35. Rd3 {[%emt 0:00:00]} Nd7 {[%emt 0:01:08]} 36. Bd1 {[%emt 0:00:00]} Nc5 {[%emt 0:00:20]} 37. Rd2 {[%emt 0:00:00]} Rb1 {[%emt 0:00:19]} 38. Rd4 {[%emt 0:00:00]} a5 {[%emt 0:04:51]} 39. g4 {[%emt 0:00:57]} fxg4 {[%emt 0:02:15]} 40. Rxg4 {[%emt 0:00:09]} Nd3+ {[%emt 0:00:33]} 41. Ke2 {[%emt 1:30:13]} Rxd1 {[%emt 1:29:44]} 42. Rd4 {[%emt 0:00:00]} Nxf2 {[%emt 0:00:00]} 43. Rf4+ {[%emt 0:00:00]} Kg7 {[%emt 0:00:00]} 44. Kxf2 {[%emt 0:00:00]} Rxd5 {[%emt 0:00:00]} 45. Ke2 {[%emt 0:00:00]} b5 {[%emt 0:01:21]} 46. axb5 {[%emt 0:01:12]} Rxb5 {[%emt 0:00:00]} 0-1